bitfinex-derivatives/quotes_SOLF0:USTF0_20220109
["timestamp","ask_amount","ask_price","bid_price","bid_amount"]
[1641730806461,4.0,139.38,139.34,27.66479]
[1641730806660,4.0,139.38,139.26,3.587]
[1641730807060,7.17849323,139.39,139.27,3.19490914]
[1641730807261,4.0,139.36,139.28,1.794]
[1641730807460,4.0,139.35,139.27,3.19490914]
[1641730807663,11.17849323,139.39,139.27,3.19490914]
[1641730807863,4.0,139.36,139.28,27.66479]
[1641730808061,11.17978173,139.36,139.28,27.66479]
[1641730808261,4.0,139.34,139.28,27.66479]
[1641730808461,7.17978173,139.36,139.28,27.66479]
[1641730808862,4.0,139.33,139.28,27.66479]
[1641730809264,11.17978173,139.36,139.28,27.66479]
[1641730809663,7.17978173,139.36,139.28,27.66479]
[1641730809866,4.0,139.35,139.28,27.66479]
[1641730810565,11.17978173,139.36,139.28,27.66479]
[1641730810766,7.17978173,139.36,139.28,27.66479]
[1641730811365,11.17978173,139.36,139.28,27.66479]
[1641730811565,7.17978173,139.36,139.28,27.66479]
[1641730811967,7.17978173,139.36,139.31,27.66479]
[1641730812170,7.17978173,139.36,139.28,27.66479]
[1641730812569,11.17823559,139.39,139.29,3.19544601]
[1641730813468,7.17823559,139.39,139.29,3.19544601]
[1641730813669,7.17669011,139.42,139.3,1.794]
[1641730813869,35.8098,139.47,139.32,7.17385846]
[1641730814070,39.8098,139.47,139.4,27.66479]
[1641730814271,4.0,139.47,139.4,27.66479]
[1641730815070,4.0,139.49,139.4,27.66479]
[1641730815671,4.0,139.48,139.4,27.66479]
[1641730815871,4.0,139.47,139.4,27.66479]
[1641730817072,4.0,139.49,139.4,27.66479]
[1641730817273,4.0,139.48,139.4,27.66479]
[1641730817481,27.66479,139.5,139.4,27.66479]
[1641730818378,4.0,139.48,139.4,27.66479]
[1641730819578,4.0,139.47,139.4,27.66479]
[1641730819879,27.66479,139.5,139.4,27.66479]
[1641730820079,4.0,139.47,139.4,27.66479]
[1641730820279,27.66479,139.5,139.4,27.66479]
[1641730820483,4.0,139.48,139.4,27.66479]
[1641730820883,4.0,139.5,139.4,27.66479]
[1641730821083,4.0,139.52,139.4,27.66479]
[1641730821284,4.0,139.53,139.41,1.792]
[1641730821484,4.0,139.52,139.41,3.584]
[1641730821782,4.0,139.52,139.41,6.77556993]
[1641730821983,4.0,139.52,139.48,27.66479]
[1641730822383,7.17051484,139.54,139.48,27.66479]
[1641730822584,22.29601184,139.54,139.48,27.66479]
[1641730822984,15.125497,139.54,139.48,27.66479]
[1641730823384,15.125497,139.56,139.48,27.66479]
[1641730823984,15.125497,139.56,139.52,27.66479]
[1641730824484,4.0,139.57,139.52,27.66479]
[1641730824884,4.0,139.56,139.52,27.66479]
[1641730825084,4.0,139.58,139.52,27.66479]
[1641730825385,7.16794495,139.59,139.52,27.66479]
[1641730825386,22.29344195,139.59,139.52,27.66479]
[1641730825587,4.0,139.57,139.52,27.66479]
[1641730826687,7.16794495,139.59,139.52,27.66479]
[1641730827489,11.16794495,139.59,139.52,27.66479]
[1641730827688,6.36447357,139.58,139.52,27.66479]
[1641730828289,2.36447357,139.58,139.52,27.66479]
[1641730828490,42.790287,139.61,139.52,27.66479]
[1641730829092,6.36366415,139.6,139.52,27.66479]
[1641730829292,2.36366415,139.6,139.52,27.66479]
[1641730829494,4.0,139.59,139.52,27.66479]
[1641730829894,2.36366415,139.6,139.52,27.66479]
[1641730830093,2.36366415,139.62,139.55,27.66479]
[1641730830495,4.0,139.58,139.55,27.66479]
[1641730831096,4.0,139.59,139.52,27.66479]
[1641730831294,2.36366415,139.62,139.52,27.66479]
[1641730831495,53.95643412,139.63,139.52,27.66479]
[1641730831695,4.0,139.59,139.52,27.66479]
[1641730831897,49.95643412,139.63,139.52,27.66479]
[1641730832097,4.0,139.59,139.55,27.66479]
[1641730833601,4.0,139.58,139.55,27.66479]
[1641730833800,4.0,139.62,139.55,27.66479]
[1641730834101,27.66479,139.6,139.55,27.66479]
[1641730835102,2.35956264,139.59,139.55,27.66479]
[1641730835503,4.0,139.58,139.55,27.66479]
[1641730835905,2.35956264,139.59,139.55,27.66479]
[1641730836505,8.0,139.56,139.48,1.791]
[1641730836708,7.17025777,139.55,139.47,44.9932]
[1641730836905,7.17025777,139.55,139.41,51.19546347]
[1641730837107,7.17025777,139.55,139.42,1.792]
[1641730837406,4.0,139.53,139.42,3.584]
[1641730837607,7.17025777,139.55,139.43,3.19116586]
[1641730837807,4.0,139.54,139.43,3.19116586]
[1641730838208,4.0,139.54,139.48,27.66479]
[1641730838407,4.0,139.52,139.48,27.66479]
[1641730838606,4.0,139.52,139.46,27.66479]
[1641730839609,7.17025777,139.55,139.46,27.66479]
[1641730839811,4.0,139.54,139.46,27.66479]
[1641730840009,7.17025777,139.55,139.46,27.66479]
[1641730840210,4.0,139.54,139.46,27.66479]
[1641730840711,7.17025777,139.55,139.46,27.66479]
[1641730840911,2.36944564,139.54,139.46,27.66479]
[1641730841414,4.0,139.53,139.46,27.66479]
[1641730841813,2.36944564,139.54,139.46,27.66479]
[1641730842214,4.0,139.52,139.43,27.66479]
[1641730843017,17.49494264,139.54,139.43,27.66479]
[1641730843215,15.125497,139.54,139.43,27.66479]
[1641730843919,17.50699473,139.54,139.43,27.66479]
[1641730844118,15.125497,139.53,139.49,27.66479]
[1641730845520,2.38149773,139.53,139.49,27.66479]
[1641730847723,17.50699473,139.53,139.49,27.66479]
[1641730848424,2.38149773,139.53,139.49,27.66479]
[1641730849525,4.0,139.54,139.49,27.66479]
[1641730849725,17.50699473,139.55,139.49,27.66479]
[1641730850124,4.0,139.51,139.46,27.66479]
[1641730850326,19.125497,139.51,139.46,27.66479]
[1641730850527,4.0,139.5,139.45,43.5511]
[1641730850726,15.125497,139.51,139.43,27.66479]
[1641730851229,2.38149773,139.49,139.43,27.66479]
[1641730852030,15.125497,139.5,139.43,27.66479]
[1641730852631,17.50699473,139.5,139.43,27.66479]
[1641730853033,21.50699473,139.5,139.43,27.66479]
[1641730853336,19.125497,139.5,139.43,27.66479]
[1641730853935,2.38149773,139.49,139.43,27.66479]
[1641730855035,15.125497,139.5,139.43,27.66479]
[1641730855435,9.7e-05,139.5,139.43,27.66479]
[1641730855637,9.7e-05,139.5,139.44,3.19082739]
[1641730855837,2.38149773,139.51,139.45,1.792]
[1641730856037,2.38149773,139.51,139.45,3.584]
[1641730856236,2.38149773,139.51,139.49,27.66479]
[1641730857337,4.0,139.53,139.49,27.66479]
[1641730857540,2.38149773,139.55,139.49,27.66479]
[1641730857738,6.38149773,139.55,139.49,27.66479]
[1641730857938,2.38149773,139.52,139.49,27.66479]
[1641730858638,2.38149773,139.55,139.49,27.66479]
[1641730858938,4.0,139.53,139.49,27.66479]
[1641730859638,2.38149773,139.55,139.49,27.66479]
[1641730860040,2.38149773,139.52,139.49,27.66479]
[1641730860940,2.38149773,139.55,139.49,27.66479]
[1641730861140,6.38149773,139.55,139.49,27.66479]
[1641730861339,6.38149773,139.55,139.44,53.71383119]
[1641730861340,4.0,139.54,139.44,53.71383119]
[1641730861539,4.0,139.52,139.44,8.95843119]
[1641730861739,4.0,139.52,139.44,7.16743119]
[1641730861941,6.38149773,139.55,139.44,7.16743119]
[1641730862139,2.38149773,139.54,139.5,27.66479]
[1641730862841,2.38149773,139.55,139.5,27.66479]
[1641730863342,42.3223006,139.55,139.5,27.66479]
[1641730864141,9.74295671,139.59,139.54,27.66479]
[1641730864342,40.62309091,139.58,139.54,27.66479]
[1641730865144,9.74295671,139.59,139.54,27.66479]
[1641730865343,4.0,139.59,139.54,27.66479]
[1641730866542,35.67326274,139.63,139.54,27.66479]
[1641730866743,4.0,139.59,139.54,27.66479]
[1641730868546,4.0,139.58,139.54,27.66479]
[1641730868745,4.0,139.6,139.54,27.66479]
[1641730869044,35.67326274,139.63,139.54,27.66479]
[1641730869344,4.0,139.59,139.54,27.66479]
[1641730869543,31.67326274,139.63,139.54,27.66479]
[1641730869544,35.67326274,139.63,139.54,27.66479]
[1641730869744,4.0,139.58,139.54,27.66479]
[1641730870246,4.0,139.62,139.54,27.66479]
[1641730870945,20.35937712,139.61,139.54,27.66479]
[1641730871146,4.0,139.57,139.54,27.66479]
[1641730872047,9.74295671,139.62,139.54,27.66479]
[1641730872247,27.66479,139.61,139.54,27.66479]
[1641730872448,52.02393979,139.61,139.54,27.66479]
[1641730872648,24.35914979,139.61,139.54,27.66479]
[1641730872851,20.35914979,139.61,139.54,27.66479]
[1641730873050,20.35914979,139.6,139.54,27.66479]
[1641730873449,20.35914979,139.6,139.55,1.791]
[1641730873752,20.35914979,139.61,139.55,3.582]
[1641730873950,27.66479,139.64,139.55,3.582]
[1641730874350,63.95123874,139.66,139.59,27.66479]
[1641730874952,4.0,139.66,139.59,27.66479]
[1641730875152,27.66479,139.67,139.59,27.66479]
[1641730875355,4.0,139.68,139.59,27.66479]
[1641730876254,4.0,139.68,139.62,27.66479]
[1641730876454,4.0,139.68,139.59,27.66479]
[1641730876655,4.0,139.68,139.6,1.79]
[1641730876855,4.0,139.68,139.6,3.58]
[1641730877958,4.0,139.68,139.6,1.79]
[1641730878358,14.7026029,139.7,139.65,27.66479]
[1641730879160,31.66479,139.73,139.65,27.66479]
[1641730879358,27.66479,139.73,139.65,27.66479]
[1641730879559,109.3771724,139.75,139.65,27.66479]
[1641730880261,27.66479,139.74,139.65,55.32958]
[1641730880661,4.0,139.73,139.65,55.32958]
[1641730881060,4.0,139.71,139.65,27.66479]
[1641730881262,27.66479,139.74,139.62,1.789]
[1641730881563,4.0,139.68,139.61,47.5723]
[1641730881762,4.0,139.69,139.6,42.8484]
[1641730881961,31.66479,139.74,139.6,44.6384]
[1641730881962,27.66479,139.74,139.6,44.6384]
[1641730882163,4.0,139.71,139.6,46.4274]
[1641730882363,4.0,139.71,139.65,27.66479]
[1641730882968,4.0,139.72,139.65,27.66479]
[1641730883365,27.66479,139.74,139.65,27.66479]
[1641730883565,31.66479,139.74,139.65,27.66479]
[1641730884165,27.66479,139.74,139.65,27.66479]
[1641730884366,4.0,139.73,139.65,27.66479]
[1641730885166,27.66479,139.74,139.65,27.66479]
[1641730885866,15.09097458,139.73,139.65,27.66479]
[1641730886270,15.09097458,139.73,139.68,27.66479]
[1641730886469,4.0,139.72,139.68,27.66479]
[1641730887070,15.09097458,139.73,139.68,27.66479]
[1641730891879,15.09097458,139.74,139.68,27.66479]
[1641730892484,15.09097458,139.74,139.72,27.66479]
[1641730892677,42.4502,139.78,139.72,27.66479]
[1641730892678,15.09097458,139.75,139.72,27.66479]
[1641730893678,15.09097458,139.74,139.72,27.66479]
[1641730893978,15.09097458,139.74,139.68,27.66479]
[1641730894179,19.09097458,139.74,139.68,27.66479]
[1641730894380,15.09097458,139.73,139.68,27.66479]
[1641730895478,19.09097458,139.73,139.68,27.66479]
[1641730895681,4.0,139.72,139.68,27.66479]
[1641730896481,15.09097458,139.72,139.68,27.66479]
[1641730897081,19.09097458,139.72,139.68,27.66479]
[1641730897281,15.09097458,139.72,139.68,27.66479]
[1641730897481,19.09097458,139.72,139.66,73.24479]
[1641730897683,15.09097458,139.72,139.66,27.66479]
[1641730898384,4.0,139.74,139.66,27.66479]
[1641730898385,15.09097458,139.71,139.66,27.66479]
[1641730898784,19.09097458,139.71,139.66,27.66479]
[1641730899185,15.09097458,139.71,139.66,27.66479]
[1641730900391,15.09097458,139.71,139.69,27.66479]
[1641730900790,15.09097458,139.71,139.66,27.66479]
[1641730902491,15.09097458,139.71,139.7,27.66479]
[1641730903297,40.2434309,139.73,139.7,27.66479]
[1641730904095,15.19612805,139.71,139.7,27.66479]
[1641730904395,2.805e-05,139.71,139.7,27.66479]
[1641730904795,2.37935667,139.71,139.7,27.66479]
[1641730905695,2.805e-05,139.71,139.7,27.66479]
[1641730907595,2.805e-05,139.71,139.67,1.789]
[1641730907796,40.2434309,139.73,139.66,27.66479]
[1641730907995,4.0,139.72,139.66,27.66479]
[1641730908395,2.37932862,139.71,139.66,27.66479]
[1641730909397,42.62275952,139.72,139.66,27.66479]
[1641730910100,4.0,139.68,139.64,45.7165]
[1641730910397,4.0,139.72,139.62,1.789]
[1641730910597,4.0,139.68,139.62,27.66479]
[1641730910798,4.0,139.65,139.62,27.66479]
[1641730911600,2.37932862,139.64,139.62,27.66479]
[1641730912499,9.67434542,139.69,139.62,27.66479]
[1641730913099,4.0,139.64,139.62,27.66479]
[1641730913300,4.0,139.68,139.6,27.66479]
[1641730913500,4.0,139.67,139.58,48.1706]
[1641730913701,4.0,139.62,139.58,46.3806]
[1641730913900,4.0,139.68,139.58,46.3806]
[1641730914101,52.30114515,139.69,139.58,46.3806]
[1641730914102,44.2434309,139.66,139.58,46.3806]
[1641730914301,4.0,139.65,139.58,46.3806]
[1641730914502,31.66479,139.65,139.58,74.04539]
[1641730914702,4.0,139.65,139.58,74.04539]
[1641730914903,4.0,139.65,139.58,81.20563631]
[1641730915102,2.38336883,139.64,139.58,81.20563631]
[1641730915303,2.38336883,139.64,139.59,1.79]
[1641730915504,2.38336883,139.64,139.59,3.58]
[1641730916105,2.38336883,139.64,139.6,2.69081328]
[1641730916605,2.38336883,139.64,139.62,27.66479]
[1641730917004,4.0,139.66,139.62,27.66479]
[1641730917606,2.38336883,139.65,139.62,27.66479]
[1641730918407,4.0,139.66,139.62,27.66479]
[1641730919108,40.2434309,139.69,139.62,27.66479]
[1641730919307,2.38336883,139.65,139.62,27.66479]
[1641730919908,4.0,139.68,139.62,27.66479]
[1641730920110,42.62679973,139.69,139.62,27.66479]
[1641730920111,46.62679973,139.69,139.62,27.66479]
[1641730920510,42.62679973,139.69,139.62,27.66479]
[1641730920812,2.38336883,139.68,139.62,27.66479]
[1641730921210,4.0,139.65,139.62,27.66479]
[1641730921412,4.0,139.64,139.59,1.79]
[1641730921611,2.38336883,139.68,139.58,74.04539]
[1641730921810,6.38336883,139.68,139.59,1.79]
[1641730922012,2.38336883,139.63,139.59,3.58]
[1641730922810,2.38336883,139.65,139.59,3.58]
[1641730923412,4.0,139.64,139.59,1.79]
[1641730923610,2.38336883,139.65,139.58,74.04539]
[1641730924313,4.0,139.63,139.58,74.04539]
[1641730924513,4.0,139.63,139.58,27.66479]
[1641730925613,94.64349973,139.67,139.58,27.66479]
[1641730926016,2.38336883,139.62,139.58,27.66479]
[1641730926617,2.38336883,139.64,139.58,27.66479]
[1641730926817,4.0,139.61,139.58,27.66479]
[1641730927415,2.38336883,139.64,139.58,27.66479]
[1641730927616,4.0,139.61,139.58,27.66479]
[1641730928717,4.0,139.65,139.58,27.66479]
[1641730928919,4.0,139.59,139.58,27.66479]
[1641730929318,4.0,139.59,139.51,48.0846]
[1641730929520,4.0,139.59,139.51,46.2936]
[1641730929720,4.0,139.62,139.51,46.2936]
[1641730929921,4.0,139.56,139.51,46.2936]
[1641730930120,4.0,139.56,139.49,3.582]
[1641730930320,2.37901763,139.59,139.49,3.582]
[1641730930520,4.0,139.55,139.49,1.791]
[1641730930721,4.0,139.55,139.54,27.66479]
[1641730931926,8.0,139.55,139.48,47.7309]
[1641730932123,4.0,139.5,139.47,1.791]
[1641730932422,4.0,139.5,139.49,3.18927924]
[1641730932823,4.0,139.5,139.45,3.18927924]
[1641730933023,27.66479,139.51,139.45,3.18927924]
[1641730933724,4.0,139.48,139.45,3.18927924]
[1641730934627,4.0,139.48,139.44,3.18927924]
[1641730935024,27.66479,139.51,139.44,3.18927924]
[1641730935224,4.0,139.49,139.44,3.18927924]
[1641730936025,4.0,139.48,139.44,3.18927924]
[1641730937226,27.66479,139.51,139.44,3.18927924]
[1641730937426,27.66479,139.51,139.44,6.77327924]
[1641730937625,31.66479,139.51,139.44,6.77327924]
[1641730937825,4.0,139.51,139.44,6.77327924]
[1641730938227,4.0,139.51,139.45,3.18927924]
[1641730938427,50.1122,139.52,139.45,3.18927924]
[1641730938727,4.0,139.5,139.45,3.18927924]
[1641730938927,4.0,139.5,139.47,27.66479]
[1641730941031,4.0,139.5,139.48,3.18959576]
[1641730941832,4.0,139.5,139.47,27.66479]
[1641730942334,27.66479,139.53,139.47,27.66479]
[1641730942632,4.0,139.54,139.48,3.18957651]
[1641730942833,31.66479,139.56,139.48,3.18957651]
[1641730943032,31.66479,139.56,139.49,1.791]
[1641730943232,4.0,139.56,139.49,1.791]
[1641730943632,27.66479,139.59,139.49,1.791]
[1641730943833,4.0,139.54,139.48,1.791]
[1641730944033,4.0,139.54,139.5,3.18889517]
[1641730944333,4.0,139.53,139.49,3.18889517]
[1641730944532,27.66479,139.59,139.49,3.18889517]
[1641730945234,4.0,139.56,139.51,27.66479]
[1641730945633,4.0,139.58,139.48,3.582]
[1641730945834,34.83299186,139.59,139.48,1.791]
[1641730946033,4.0,139.51,139.47,27.66479]
[1641730946633,4.0,139.55,139.47,27.66479]
[1641730946834,17.5008571,139.58,139.47,27.66479]
[1641730947035,27.66479,139.53,139.47,27.66479]
[1641730947232,4.0,139.49,139.47,27.66479]
[1641730947635,31.66479,139.53,139.47,27.66479]
[1641730948535,4.0,139.48,139.47,27.66479]
[1641730951538,27.66479,139.53,139.47,27.66479]
[1641730951939,4.0,139.51,139.47,27.66479]
[1641730952340,27.66479,139.53,139.47,27.66479]
[1641730952541,4.0,139.52,139.47,27.66479]
[1641730952943,4.0,139.51,139.47,27.66479]
[1641730953944,27.66479,139.54,139.47,27.66479]
[1641730954144,4.0,139.51,139.47,27.66479]
[1641730954844,4.0,139.53,139.47,27.66479]
[1641730955045,31.66479,139.54,139.48,3.1896589]
[1641730955247,31.66479,139.54,139.48,4.9806589]
[1641730955248,27.66479,139.54,139.48,4.9806589]
[1641730955445,64.39490362,139.56,139.48,4.9806589]
[1641730955646,15.13090362,139.56,139.48,4.9806589]
[1641730955845,15.13090362,139.56,139.49,3.1896589]
[1641730956046,4.0,139.52,139.49,3.1896589]
[1641730957549,4.0,139.52,139.48,1.791]
[1641730957751,75.82459,139.57,139.48,1.791]
[1641730957949,4.0,139.54,139.49,3.18923694]
[1641730958749,75.82459,139.57,139.49,3.18923694]
[1641730958949,42.79569362,139.57,139.49,3.18923694]
[1641730959549,15.13090362,139.57,139.49,3.18923694]
[1641730959750,2.38263589,139.56,139.5,1.791]
[1641730959949,2.38263589,139.56,139.5,10.74660684]
[1641730960153,15.13090362,139.57,139.51,3.18923694]
[1641730960352,4.0,139.59,139.52,1.791]
[1641730960550,4.0,139.59,139.52,3.582]
[1641730961152,4.0,139.59,139.53,3.18923694]
[1641730961354,4.0,139.59,139.54,29.45579]
[1641730961552,4.0,139.59,139.54,31.24679]
[1641730962452,4.0,139.59,139.54,27.66479]
[1641730963251,4.0,139.59,139.58,27.66479]
[1641730964953,4.0,139.59,139.54,27.66479]
[1641730965657,4.0,139.59,139.54,29.45579]
[1641730970060,61.83080362,139.63,139.54,29.45579]
[1641730970260,15.13090362,139.63,139.54,29.45579]
[1641730970760,17.50586698,139.64,139.54,29.45579]
[1641730970960,4.0,139.59,139.54,29.45579]
[1641730972160,4.0,139.59,139.55,3.18764386]
[1641730974161,4.0,139.61,139.55,3.18764386]
[1641730974661,4.0,139.64,139.55,3.18764386]
[1641730974860,4.0,139.64,139.55,54.10104386]
[1641730975262,4.0,139.58,139.55,54.10104386]
[1641730975460,4.0,139.62,139.55,3.18764386]
[1641730975661,4.0,139.57,139.55,3.18764386]
[1641730975862,4.0,139.57,139.53,27.66479]
[1641730976062,27.66479,139.6,139.53,27.66479]
[1641730976263,4.0,139.56,139.53,27.66479]
[1641730977561,4.0,139.56,139.54,3.18805613]
[1641730977861,4.0,139.55,139.53,27.66479]
[1641730980363,4.0,139.57,139.53,27.66479]
[1641730980565,4.0,139.58,139.53,27.66479]
[1641730980764,46.2039,139.61,139.54,4.97841876]
[1641730981064,15.13090362,139.63,139.55,3.18741876]
[1641730981266,4.0,139.64,139.55,5.87097902]
[1641730981763,4.0,139.58,139.56,2.68356026]
[1641730981963,4.0,139.58,139.56,5.87097902]
[1641730982162,4.0,139.57,139.56,5.87097902]
[1641730982364,4.0,139.57,139.56,2.68356026]
[1641730982564,4.0,139.57,139.54,1.791]
[1641730982764,31.66479,139.61,139.53,42.79569362]
[1641730982964,4.0,139.55,139.53,42.79569362]
[1641730983264,4.0,139.55,139.54,3.18790938]
[1641730984870,4.0,139.55,139.54,5.87552381]
[1641730985069,49.1448,139.6,139.54,5.87552381]
[1641730985270,59.32958,139.61,139.54,5.87552381]
[1641730985468,4.0,139.56,139.54,5.87552381]
[1641730985668,55.32958,139.61,139.54,5.87552381]
[1641730985869,4.0,139.58,139.54,2.68761443]
[1641730986271,4.0,139.58,139.53,27.66479]
[1641730986471,4.0,139.56,139.53,27.66479]
[1641730986670,4.0,139.6,139.53,27.66479]
[1641730986871,4.0,139.6,139.54,3.18793755]
[1641730987170,4.0,139.55,139.54,5.87753319]
[1641730987569,4.0,139.57,139.54,5.87753319]
[1641730987969,4.0,139.57,139.54,2.68959564]
[1641730988272,59.32958,139.61,139.54,2.68959564]
[1641730988470,59.32958,139.61,139.55,2.68959564]
[1641730988471,4.0,139.6,139.55,2.68959564]
[1641730988671,4.0,139.56,139.55,2.68959564]
[1641730988872,4.0,139.56,139.54,2.68959564]
[1641730989271,4.0,139.59,139.54,2.68959564]
[1641730989873,4.0,139.55,139.54,2.68959564]
[1641730990573,4.0,139.55,139.54,5.87742793]
[1641730993978,4.0,139.55,139.52,15.13090362]
[1641730994184,35.66479,139.53,139.52,15.13090362]
[1641730994382,35.66479,139.53,139.49,40.2434309]
[1641730994680,4.0,139.51,139.49,40.2434309]
[1641730995080,4.0,139.51,139.47,27.66479]
[1641730995782,4.0,139.51,139.48,2.34431932]
[1641730996984,4.0,139.49,139.48,2.34431932]
[1641731004594,27.66479,139.53,139.48,2.34431932]
[1641731004795,4.0,139.51,139.48,2.34431932]
[1641731006805,31.66479,139.55,139.48,2.34431932]
[1641731007007,4.0,139.49,139.48,2.34431932]
[1641731007909,27.66479,139.55,139.48,2.34431932]
[1641731008106,4.0,139.5,139.48,2.34431932]
[1641731010111,4.0,139.54,139.48,2.34431932]
[1641731010310,4.0,139.49,139.48,2.34431932]
[1641731013510,4.0,139.49,139.47,27.66479]
[1641731013915,4.0,139.48,139.47,27.66479]
[1641731015318,4.0,139.48,139.44,47.6982]
[1641731015517,4.0,139.45,139.42,1.792]
[1641731015716,4.0,139.48,139.41,40.2434309]
[1641731015919,4.0,139.42,139.41,40.2434309]
[1641731016121,27.66479,139.52,139.41,40.2434309]
[1641731016317,4.0,139.44,139.39,142.82632825]
[1641731017220,4.0,139.47,139.4,10.54683277]
[1641731017418,4.0,139.47,139.41,1.792]
[1641731017619,4.0,139.47,139.41,3.584]
[1641731018019,4.0,139.47,139.41,43.8274309]
[1641731018220,4.0,139.52,139.41,43.8274309]
[1641731018418,4.0,139.51,139.45,27.66479]
[1641731018618,50.7231,139.56,139.45,27.66479]
[1641731018917,50.7231,139.56,139.46,50.8717]
[1641731018918,4.0,139.53,139.46,50.8717]
[1641731019118,4.0,139.52,139.46,52.6637]
[1641731019520,4.0,139.51,139.46,52.6637]
[1641731019919,50.7231,139.56,139.46,52.6637]
[1641731020118,4.0,139.53,139.46,52.6637]
[1641731020321,4.0,139.53,139.47,10.54683277]
[1641731020722,4.0,139.51,139.47,10.54683277]
[1641731020921,78.38789,139.56,139.47,10.54683277]
[1641731021321,4.0,139.51,139.47,10.54683277]
[1641731022122,4.0,139.5,139.47,10.54683277]
[1641731022322,4.0,139.51,139.47,10.54683277]
[1641731023225,4.0,139.55,139.47,10.54683277]
[1641731023726,4.0,139.5,139.47,10.54683277]
[1641731024725,4.0,139.5,139.48,15.22484008]
[1641731025026,4.0,139.49,139.48,15.22484008]
[1641731025426,4.0,139.49,139.47,25.77167285]
[1641731026025,4.0,139.53,139.47,25.77167285]
[1641731026225,4.0,139.48,139.47,15.22484008]
[1641731026424,4.0,139.55,139.47,15.22484008]
[1641731026626,4.0,139.55,139.47,64.97744008]
[1641731027625,4.0,139.49,139.47,64.97744008]
[1641731027824,4.0,139.49,139.47,15.22484008]
[1641731029128,4.0,139.49,139.48,2.34402459]
[1641731030029,4.0,139.49,139.47,15.22484008]
[1641731030229,8.0,139.48,139.47,15.22484008]
[1641731030732,4.0,139.48,139.46,3.584]
[1641731030929,4.0,139.47,139.46,3.584]
[1641731031729,4.0,139.47,139.46,5.92874797]
[1641731032833,4.0,139.48,139.46,5.92874797]
[1641731033034,4.0,139.47,139.46,5.92874797]
[1641731033936,31.66479,139.53,139.46,5.92874797]
[1641731034535,31.66479,139.53,139.47,2.34474797]
[1641731035037,31.66479,139.53,139.48,2.68941327]
[1641731036337,31.66479,139.53,139.47,2.68941327]
[1641731036538,4.0,139.48,139.47,2.68941327]
[1641731036737,27.66479,139.53,139.47,2.68941327]
[1641731037039,27.66479,139.53,139.47,5.03354353]
[1641731037236,4.0,139.49,139.47,5.03354353]
[1641731037437,4.0,139.49,139.48,2.34413026]
[1641731037942,4.0,139.49,139.48,5.03354353]
[1641731038138,4.0,139.51,139.48,5.03354353]
[1641731038539,4.0,139.51,139.49,2.68941327]
[1641731038741,4.0,139.51,139.49,5.03354353]
[1641731039142,27.66479,139.53,139.5,2.34413026]
[1641731039441,4.0,139.51,139.5,2.34413026]
[1641731039644,4.0,139.51,139.5,5.03354353]
[1641731041344,4.0,139.51,139.5,2.68941327]
[1641731041544,27.66479,139.55,139.5,2.68941327]
[1641731041751,4.0,139.55,139.5,2.68941327]
[1641731041947,15.22484008,139.57,139.5,5.03278314]
[1641731042348,72.51752814,139.6,139.51,2.34336987]
[1641731042547,4.0,139.57,139.51,50.06006987]
[1641731042747,72.51752814,139.6,139.51,50.06006987]
[1641731042947,72.51752814,139.6,139.54,27.66479]
[1641731043349,57.29268806,139.6,139.54,27.66479]
[1641731043748,46.88963008,139.61,139.54,27.66479]
[1641731044049,4.0,139.56,139.54,27.66479]
[1641731044251,4.0,139.56,139.51,75.38149]